fUST/lending_fUST_20251028
["ID","MTS","AMOUNT","RATE_DAILY","PERIOD"]
[392541381,1761635468975,-2313.89,0.00023013,2]
[392541382,1761635468985,-2035.81,0.00023013,2]
[392541383,1761635468994,-500.0,0.00023013,2]
[392541384,1761635469004,-951.2,0.00023013,2]
[392541385,1761635469014,-500.0,0.00023013,2]
[392541386,1761635469023,-526.13,0.00023013,2]
[392541387,1761635469033,-2014.9,0.00023013,2]
[392541388,1761635469043,-500.0,0.00023013,2]
[392541389,1761635469052,-890.11,0.00023013,2]
[392541390,1761635469062,-3964.38,0.00023013,2]
[392541391,1761635469076,-1023.23,0.00023013,2]
[392541392,1761635469245,-500.0,0.00023013,2]
[392541393,1761635469255,-500.0,0.00023013,2]
[392541394,1761635469265,-2909.37,0.00023013,2]
[392541395,1761635469275,-500.0,0.00023013,2]
[392541396,1761635469284,-500.0,0.00023013,2]
[392541397,1761635469294,-500.0,0.00023013,2]
[392541398,1761635469304,-2874.27,0.00023013,2]
[392541399,1761635469313,-2741.75,0.00023013,2]
[392541400,1761635469323,-500.0,0.00023013,2]
[392541401,1761635469332,-500.0,0.00023013,2]
[392541402,1761635469343,-1318.04,0.00023013,2]
[392541403,1761635469353,-500.0,0.00023013,2]
[392541404,1761635469363,-500.0,0.00023013,2]
[392541405,1761635469373,-500.0,0.00023013,2]
[392541406,1761635469382,-1545.04,0.00023013,2]
[392541407,1761635469393,-679.39,0.00023013,2]
[392541408,1761635469403,-500.0,0.00023013,2]
[392541409,1761635469413,-609.24,0.00023013,2]
[392541410,1761635469423,-3883.37,0.00023013,2]
[392541411,1761635469434,-1588.65,0.00023013,2]
[392541412,1761635469443,-500.0,0.00023013,2]
[392541413,1761635469452,-500.0,0.00023013,2]
[392541414,1761635469462,-500.0,0.00023013,2]
[392541415,1761635469472,-500.0,0.00023013,2]
[392541416,1761635469481,-5972.25,0.00023013,2]
[392541417,1761635469491,-500.0,0.00023013,2]
[392541418,1761635469500,-500.0,0.00023013,2]
[392541419,1761635469509,-2782.69,0.00023013,2]
[392541420,1761635469518,-1281.17,0.00023013,2]
[392541421,1761635469528,-500.0,0.00023013,2]
[392541422,1761635469538,-500.0,0.00023013,2]
[392541423,1761635469547,-500.0,0.00023013,2]
[392541424,1761635469557,-500.0,0.00023013,2]
[392541425,1761635469567,-551.02,0.00023013,2]
[392541426,1761635469577,-786.84,0.00023013,2]
[392541427,1761635469587,-750.43,0.00023013,2]
[392541428,1761635469596,-500.0,0.00023013,2]
[392541429,1761635469606,-500.0,0.00023013,2]
[392541430,1761635469615,-500.0,0.00023013,2]
[392541431,1761635469625,-3198.47,0.00023013,2]
[392541432,1761635469635,-500.0,0.00023013,2]
[392541433,1761635469644,-858.33,0.00023013,2]
[392541434,1761635469654,-683.28,0.00023013,2]
[392541435,1761635469664,-1378.5,0.00023013,2]
[392541436,1761635469674,-2587.33,0.00023013,2]
[392541437,1761635469683,-500.0,0.00023013,2]
[392541438,1761635469692,-799.95,0.00023013,2]
[392541439,1761635469702,-543.47,0.00023013,2]
[392541440,1761635469711,-500.0,0.00023013,2]
[392541441,1761635469721,-1913.07,0.00023013,2]
[392541442,1761635469731,-500.0,0.00023013,2]
[392541443,1761635469741,-649.31,0.00023013,2]
[392541444,1761635469751,-1884.93,0.00023013,2]
[392541445,1761635469761,-3561.46,0.00023013,2]
[392541446,1761635469771,-860.49,0.00023013,2]
[392541447,1761635469780,-4199.74,0.00023013,2]
[392541448,1761635469790,-3355.11,0.00023013,2]
[392541449,1761635469800,-664.29,0.00023013,2]
[392541450,1761635469810,-500.0,0.00023013,2]
[392541451,1761635469820,-500.0,0.00023013,2]
[392541452,1761635469829,-1833.01,0.00023013,2]
[392541453,1761635469839,-609.22,0.00023013,2]
[392541454,1761635469848,-500.0,0.00023013,2]
[392541455,1761635469858,-899.79,0.00023013,2]
[392541456,1761635469868,-935.9,0.00023013,2]
[392541457,1761635469878,-500.0,0.00023013,2]
[392541458,1761635469887,-500.0,0.00023013,2]
[392541459,1761635469896,-1821.5,0.00023013,2]
[392541460,1761635469906,-531.59515198,0.00023013,2]
[392541461,1761635469915,-902.01,0.00023013,2]
[392541462,1761635469924,-831.98,0.00023013,2]
[392541463,1761635469934,-500.0,0.00023013,2]
[392541464,1761635469943,-500.0,0.00023013,2]
[392541465,1761635469953,-364.6978057,0.00023014,2]
[392541466,1761635469962,-300.0,0.00023021,2]
[392541467,1761635469971,-800.0,0.00023031,2]
[392541468,1761635469980,-260.0,0.00023048,2]
[392541469,1761635469990,-795.53816233,0.0002313,2]
[392541470,1761635469999,-800.0,0.00023136,2]
[392541471,1761635470008,-300.70929536,0.00023141,2]
[392541472,1761635470019,-900.0,0.00023157,2]
[392541473,1761635470031,-500.0,0.00023162,2]
[392541474,1761635470041,-500.0,0.0002317,2]
[392541475,1761635470050,-800.0,0.00023171,2]
[392541476,1761635470059,-500.0,0.00023172,2]
[392541477,1761635470071,-169.71830676,0.00023178,2]
[392541478,1761635470081,-500.0,0.00023186,2]
[392541479,1761635470090,-800.84576162,0.000232,2]
[392541480,1761635470101,-900.0,0.00023204,2]
[392541481,1761635470111,-166.0,0.00023205,3]
[392541482,1761635470122,-166.0,0.00023205,3]
[392541483,1761635470131,-500.0,0.00023205,30]
[392541484,1761635470140,-500.0,0.00023205,30]
[392541485,1761635470149,-500.0,0.00023205,30]
[392541486,1761635470159,-500.0,0.00023205,30]
[392541487,1761635470169,-500.0,0.00023205,30]
[392541488,1761635470178,-588.48975589,0.00023205,30]
[392541489,1761635470188,-500.0,0.00023205,30]
[392541490,1761635470198,-500.0,0.00023205,30]
[392541491,1761635470208,-500.0,0.00023205,30]
[392541492,1761635470217,-558.81782815,0.00023205,30]
[392541493,1761635470226,-190.0,0.00023208,2]
[392541494,1761635470235,-900.0,0.00023255,2]
[392541495,1761635470244,-1500.0,0.00023268,2]
[392541496,1761635470254,-1583.19033465,0.00023268,2]
[392541497,1761635470263,-966.88759684,0.00023268,2]
[392541498,1761635470272,-343.34647829,0.00023268,2]
[392541499,1761635470281,-1500.0,0.00023268,2]
[392541500,1761635470291,-1500.0,0.00023268,2]
[392541501,1761635470300,-1144.98246694,0.00023268,2]
[392541502,1761635470310,-1501.73529139,0.00023268,2]
[392541503,1761635470318,-942.17380645,0.00023268,2]
[392541504,1761635470329,-1500.0,0.00023268,2]
[392541505,1761635470339,-623.99041293,0.00023268,2]
[392541506,1761635470348,-1380.56518622,0.00023268,2]
[392541507,1761635470358,-1500.0,0.00023268,2]
[392541508,1761635470369,-1500.0,0.00023268,2]
[392541509,1761635470380,-1500.0,0.00023268,2]
[392541510,1761635470390,-1500.0,0.00023268,2]
[392541511,1761635470400,-1500.0,0.00023268,2]
[392541512,1761635470410,-1500.0,0.00023268,2]
[392541513,1761635470423,-1000.0,0.00023268,2]
[392541514,1761635470433,-1500.0,0.00023268,2]
[392541515,1761635470443,-643.24708872,0.00023268,2]
[392541516,1761635470454,-1500.0,0.00023268,2]
[392541517,1761635470463,-1500.0,0.00023268,2]
[392541518,1761635470473,-1500.0,0.00023268,2]
[392541519,1761635470482,-1366.63592304,0.00023268,2]
[392541520,1761635470491,-1169.80302592,0.00023268,2]
[392541521,1761635470500,-1500.0,0.00023268,2]
[392541522,1761635470510,-519.68066588,0.00023268,2]
[392541523,1761635470519,-1235.09095947,0.00023268,2]
[392541524,1761635470528,-1500.0,0.00023268,2]
[392541525,1761635470537,-1500.0,0.00023268,2]
[392541526,1761635470549,-941.00717966,0.00023268,2]
[392541527,1761635470559,-1500.0,0.00023268,2]
[392541528,1761635470568,-1500.0,0.00023268,2]
[392541529,1761635470577,-1500.0,0.00023268,2]
[392541530,1761635470586,-1500.0,0.00023268,2]
[392541531,1761635470596,-1500.0,0.00023268,2]
[392541532,1761635470605,-744.38891097,0.00023268,2]
[392541533,1761635470615,-244.32937662,0.00023268,2]
[392541534,1761635470624,-1500.0,0.00023268,2]
[392541535,1761635470634,-1000.34301858,0.00023268,2]
[392541536,1761635470643,-1500.0,0.00023268,2]
[392541537,1761635470652,-500.0,0.00023287,2]
[392541538,1761635470661,-959.62,0.00023287,2]
[392541539,1761635470671,-500.0,0.00023287,2]
[392541540,1761635470680,-500.0,0.00023287,2]
[392541541,1761635470689,-500.0,0.00023287,2]
[392541542,1761635470698,-500.0,0.00023287,2]
[392541543,1761635470708,-500.0,0.00023287,2]
[392541544,1761635470717,-500.0,0.00023287,2]
[392541545,1761635470726,-500.0,0.00023287,2]
[392541546,1761635470735,-715.75,0.00023287,2]
[392541547,1761635470744,-500.0,0.00023287,2]
[392541548,1761635470753,-500.0,0.00023287,2]
[392541549,1761635470762,-500.0,0.00023287,2]
[392541550,1761635470771,-603.19,0.00023287,2]
[392541551,1761635470781,-500.0,0.00023287,2]
[392541552,1761635470790,-1127.61,0.00023287,2]
[392541553,1761635470800,-530.38,0.00023287,2]
[392541554,1761635470809,-500.0,0.00023287,2]
[392541555,1761635470819,-634.37,0.00023287,2]
[392541556,1761635470828,-558.93619514,0.00023287,2]
[392541557,1761635470837,-500.0,0.00023287,2]
[392541558,1761635470846,-500.0,0.00023287,2]
[392541559,1761635470854,-1000.0,0.00023287,2]
[392541560,1761635470863,-500.0,0.00023287,2]
[392541561,1761635470873,-500.0,0.00023287,2]
[392541562,1761635470882,-638.18,0.00023287,2]
[392541563,1761635470892,-639.18828473,0.00023287,2]
[392541564,1761635470901,-1152.11,0.00023287,2]
[392541565,1761635470910,-506.11977384,0.00023287,2]
[392541566,1761635470919,-708.47,0.00023287,2]
[392541567,1761635470929,-1290.55,0.00023287,2]
[392541568,1761635470939,-537.33,0.00023287,2]
[392541569,1761635470949,-556.59,0.00023287,2]
[392541570,1761635470959,-584.67,0.00023287,2]
[392541571,1761635470968,-500.0,0.00023287,2]
[392541572,1761635470980,-500.0,0.00023287,2]
[392541573,1761635470990,-500.0,0.00023287,2]
[392541574,1761635471001,-500.0,0.00023287,2]
[392541575,1761635471010,-741.13,0.00023287,2]
[392541576,1761635471022,-500.0,0.00023287,2]
[392541577,1761635471032,-500.0,0.00023287,2]
[392541578,1761635471042,-500.0,0.00023287,2]
[392541579,1761635471051,-1281.8,0.00023287,2]
[392541580,1761635471060,-500.0,0.00023287,2]
[392541581,1761635471070,-500.0,0.00023287,2]
[392541582,1761635471080,-500.0,0.00023287,2]
[392541583,1761635471091,-500.0,0.00023287,2]
[392541584,1761635471102,-500.0,0.00023287,2]
[392541585,1761635471111,-500.0,0.00023287,2]
[392541586,1761635471121,-500.0,0.00023287,2]
[392541587,1761635471130,-500.0,0.00023287,2]
[392541588,1761635471141,-500.0,0.00023287,2]
[392541589,1761635471151,-500.0,0.00023287,2]
[392541590,1761635471161,-991.69,0.00023287,2]
[392541591,1761635471171,-500.0,0.00023287,2]
[392541592,1761635471181,-1202.42,0.00023287,2]
[392541593,1761635471192,-500.0,0.00023287,2]
[392541594,1761635471202,-500.0,0.00023287,2]
[392541595,1761635471211,-500.0,0.00023287,2]
[392541596,1761635471222,-500.0,0.00023287,2]
[392541597,1761635471230,-569.6,0.00023287,2]
[392541598,1761635471241,-560.72,0.00023287,2]
[392541599,1761635471251,-500.0,0.00023287,2]
[392541600,1761635471260,-500.0,0.00023287,2]
[392541601,1761635471269,-500.0,0.00023287,2]
[392541602,1761635471278,-596.63,0.00023287,2]
[392541603,1761635471289,-542.5270309,0.00023287,2]
[392541604,1761635471298,-500.0,0.00023287,2]
[392541605,1761635471309,-508.44432145,0.00023287,2]
[392541606,1761635471319,-1041.06,0.00023287,2]
[392541607,1761635471330,-500.0,0.00023287,2]
[392541608,1761635471340,-707.6,0.00023287,2]
[392541609,1761635471351,-388.13809299,0.00023287,2]
[392541610,1761635471360,-500.0,0.00023287,2]
[392541611,1761635471369,-500.0,0.00023287,2]
[392541612,1761635471379,-500.0,0.00023287,2]
[392541613,1761635471388,-500.0,0.00023287,2]
[392541614,1761635471398,-740.89,0.00023287,2]
[392541615,1761635471408,-500.0,0.00023287,2]
[392541616,1761635471419,-729.78,0.00023287,2]
[392541617,1761635471430,-554.86,0.00023287,2]
[392541618,1761635471439,-1476.19,0.00023287,2]
[392541619,1761635471448,-500.0,0.00023287,2]
[392541620,1761635471457,-955.14,0.00023287,2]
[392541621,1761635471466,-663.08,0.00023287,2]
[392541622,1761635471476,-500.0,0.00023287,2]
[392541623,1761635471485,-1193.15,0.00023287,2]
[392541624,1761635471494,-828.34,0.00023287,2]
[392541625,1761635471503,-632.02584991,0.00023287,2]
[392541626,1761635471512,-500.0,0.00023287,2]
[392541627,1761635471521,-1527.13,0.00023287,2]
[392541628,1761635471530,-500.0,0.00023287,2]
[392541629,1761635471539,-500.0,0.00023287,2]
[392541630,1761635471552,-1186.35,0.00023287,2]
[392541631,1761635471561,-500.0,0.00023287,2]
[392541632,1761635471570,-846.87,0.00023287,2]
[392541633,1761635471580,-500.0,0.00023287,2]
[392541634,1761635471589,-500.0,0.00023287,2]
[392541635,1761635471599,-500.0,0.00023287,2]
[392541636,1761635471608,-2295.33,0.00023287,2]
[392541637,1761635471617,-500.0,0.00023287,2]
[392541638,1761635471626,-598.96,0.00023287,2]
[392541639,1761635471635,-826.63,0.00023287,2]
[392541640,1761635471645,-500.0,0.00023287,2]
[392541641,1761635471655,-908.14,0.00023287,2]
[392541642,1761635471664,-577.01588143,0.00023287,2]
[392541643,1761635471674,-500.0,0.00023287,2]
[392541644,1761635471683,-500.0,0.00023287,2]
[392541645,1761635471693,-500.0,0.00023287,2]
[392541646,1761635471702,-500.0,0.00023287,2]
[392541647,1761635471712,-282.97136766,0.00023287,2]
[392541648,1761635471722,-826.15,0.00023287,2]
[392541649,1761635471732,-1024.07,0.00023287,2]
[392541650,1761635471742,-500.0,0.00023287,2]
[392541651,1761635471751,-500.0,0.00023287,2]
[392541652,1761635471762,-500.0,0.00023287,2]
[392541653,1761635471771,-651.86,0.00023287,2]
[392541654,1761635471781,-786.57,0.00023287,2]
[392541655,1761635471802,-1120.22,0.00023287,2]
[392541656,1761635471812,-500.0,0.00023287,2]
[392541657,1761635471821,-500.0,0.00023287,2]
[392541658,1761635471831,-500.0,0.00023287,2]
[392541659,1761635471842,-708.44,0.00023287,2]
[392541660,1761635471851,-500.0,0.00023287,2]
[392541661,1761635471861,-592.66,0.00023287,2]
[392541662,1761635471871,-584.83,0.00023287,2]
[392541663,1761635471881,-500.0,0.00023287,2]
[392541664,1761635471890,-500.0,0.00023287,2]
[392541665,1761635471900,-500.0,0.00023287,2]
[392541666,1761635472062,-667.11,0.00023287,2]
[392541667,1761635472075,-1435.66,0.00023287,2]
[392541668,1761635472084,-2653.88,0.00023287,2]
[392541669,1761635472096,-500.0,0.00023287,2]
[392541670,1761635472107,-704.69,0.00023287,2]
[392541671,1761635472120,-500.0,0.00023287,2]
[392541672,1761635472129,-794.41,0.00023287,2]
[392541673,1761635472139,-500.0,0.00023287,2]
[392541674,1761635472151,-1040.78,0.00023287,2]
[392541675,1761635472161,-1280.75,0.00023287,2]
[392541676,1761635472171,-915.53,0.00023287,2]
[392541677,1761635472182,-2189.92,0.00023287,2]
[392541678,1761635472193,-500.0,0.00023287,2]
[392541679,1761635472204,-500.0,0.00023287,2]
[392541680,1761635472215,-574.84,0.00023287,2]
[392541681,1761635472224,-500.0,0.00023287,2]
[392541682,1761635472235,-1776.07,0.00023287,2]
[392541683,1761635472245,-595.56929389,0.00023287,2]
[392541684,1761635472255,-885.22,0.00023287,2]
[392541685,1761635472265,-1000.0,0.00023287,2]
[392541686,1761635472275,-648.19,0.00023287,2]
[392541687,1761635472285,-1413.33,0.00023287,2]
[392541688,1761635472296,-500.0,0.00023287,2]
[392541689,1761635472305,-500.0,0.00023287,2]
[392541690,1761635472315,-1472.19,0.00023287,2]
[392541691,1761635472324,-500.0,0.00023287,2]
[392541692,1761635472334,-500.0,0.00023287,2]
[392541693,1761635472346,-894.76,0.00023287,2]
[392541694,1761635472356,-3175.04,0.00023287,2]
[392541695,1761635472368,-500.0,0.00023287,2]
[392541696,1761635472377,-500.0,0.00023287,2]
[392541697,1761635472386,-500.0,0.00023287,2]
[392541698,1761635472396,-500.0,0.00023287,2]
[392541699,1761635472405,-670.41,0.00023287,2]
[392541700,1761635472415,-558.04,0.00023287,2]
[392541701,1761635472425,-500.0,0.00023287,2]
[392541702,1761635472435,-500.0,0.00023287,2]
[392541703,1761635472445,-1443.63,0.00023287,2]
[392541704,1761635472455,-500.0,0.00023287,2]
[392541705,1761635472464,-500.0,0.00023287,2]
[392541706,1761635472475,-500.0,0.00023287,2]
[392541707,1761635472485,-532.74,0.00023287,2]
[392541708,1761635472495,-500.0,0.00023287,2]
[392541709,1761635472504,-500.0,0.00023287,2]
[392541710,1761635472513,-500.0,0.00023287,2]
[392541711,1761635472523,-500.0,0.00023287,2]
[392541712,1761635472532,-500.0,0.00023287,2]
[392541713,1761635472542,-799.0,0.00023287,2]
[392541714,1761635472551,-500.0,0.00023287,2]
[392541715,1761635472560,-901.78,0.00023287,2]
[392541716,1761635472569,-515.32312356,0.00023287,2]
[392541717,1761635472579,-500.0,0.00023287,2]
[392541718,1761635472588,-714.71,0.00023287,2]
[392541719,1761635472600,-500.0,0.00023287,2]
[392541720,1761635472614,-1226.97,0.00023287,2]
[392541721,1761635472624,-995.93,0.00023287,2]
[392541722,1761635472633,-500.0,0.00023287,2]
[392541723,1761635472643,-933.25,0.00023287,2]
[392541724,1761635472654,-842.36,0.00023287,2]
[392541725,1761635472664,-590.93,0.00023287,2]
[392541726,1761635472674,-500.0,0.00023287,2]
[392541727,1761635472684,-682.73,0.00023287,2]
[392541728,1761635472694,-1269.67,0.00023287,2]
[392541729,1761635472703,-355.79176903,0.00023287,2]
[392541730,1761635472712,-500.0,0.00023287,2]
[392541731,1761635472722,-500.0,0.00023287,2]
[392541732,1761635472732,-500.0,0.00023287,2]
[392541733,1761635472742,-500.0,0.00023287,2]
[392541734,1761635472751,-500.0,0.00023287,2]
[392541735,1761635472761,-500.0,0.00023287,2]
[392541736,1761635472770,-500.0,0.00023287,2]
[392541737,1761635472779,-500.0,0.00023287,2]
[392541738,1761635472788,-500.0,0.00023287,2]
[392541739,1761635472798,-1548.62,0.00023287,2]
[392541740,1761635472807,-648.16,0.00023287,2]
[392541741,1761635472816,-1713.43,0.00023287,2]
[392541742,1761635472825,-570.4,0.00023287,2]
[392541743,1761635472836,-500.0,0.00023287,2]
[392541744,1761635472845,-500.0,0.00023287,2]
[392541745,1761635472855,-807.86,0.00023287,2]
[392541746,1761635472864,-962.45,0.00023287,2]
[392541747,1761635472873,-607.99,0.00023287,2]
[392541748,1761635472883,-1597.02,0.00023287,2]
[392541749,1761635472892,-621.4,0.00023287,2]
[392541750,1761635472901,-500.0,0.00023287,2]
[392541751,1761635472910,-1840.85,0.00023287,2]
[392541752,1761635472919,-500.0,0.00023287,2]
[392541753,1761635472928,-500.0,0.00023287,2]
[392541754,1761635472937,-1281.11,0.00023287,2]
[392541755,1761635472947,-1245.66,0.00023287,2]
[392541756,1761635472957,-500.0,0.00023287,2]
[392541757,1761635472966,-500.0,0.00023287,2]
[392541758,1761635472975,-500.0,0.00023287,2]
[392541759,1761635472985,-1763.97,0.00023287,2]
[392541760,1761635472995,-540.2,0.00023287,2]
[392541761,1761635473003,-2436.61,0.00023287,2]
[392541762,1761635473013,-1315.04,0.00023287,2]
[392541763,1761635473023,-3051.8,0.00023287,2]
[392541764,1761635473034,-500.0,0.00023287,2]
[392541765,1761635473044,-500.0,0.00023287,2]
[392541766,1761635473053,-854.16,0.00023287,2]
[392541767,1761635473063,-500.0,0.00023287,2]
[392541768,1761635473074,-500.0,0.00023287,2]
[392541769,1761635473084,-1296.21,0.00023287,2]
[392541770,1761635473093,-558.93,0.00023287,2]
[392541771,1761635473103,-500.0,0.00023287,2]
[392541772,1761635473112,-567.19,0.00023287,2]
[392541773,1761635473121,-500.0,0.00023287,2]
[392541774,1761635473130,-538.03,0.00023287,2]
[392541775,1761635473139,-693.14,0.00023287,2]
[392541776,1761635473148,-500.0,0.00023287,2]
[392541777,1761635473157,-729.65,0.00023287,2]
[392541778,1761635473167,-500.0,0.00023287,2]
[392541779,1761635473176,-500.0,0.00023287,2]
[392541780,1761635473186,-811.98,0.00023287,2]
[392541781,1761635473196,-1562.88,0.00023287,2]
[392541782,1761635473206,-610.16,0.00023287,2]
[392541783,1761635473216,-500.0,0.00023287,2]
[392541784,1761635473227,-1066.35,0.00023287,2]
[392541785,1761635473238,-608.81,0.00023287,2]
[392541786,1761635473248,-500.0,0.00023287,2]
[392541787,1761635473257,-600.01,0.00023287,2]
[392541788,1761635473267,-500.0,0.00023287,2]
[392541789,1761635473277,-500.0,0.00023287,2]
[392541790,1761635473288,-1001.11,0.00023287,2]
[392541791,1761635473297,-632.42,0.00023287,2]
[392541792,1761635473306,-961.06,0.00023287,2]
[392541793,1761635473315,-1172.41,0.00023287,2]
[392541794,1761635473324,-500.0,0.00023287,2]
[392541795,1761635473333,-675.95,0.00023287,2]
[392541796,1761635473342,-500.0,0.00023287,2]
[392541797,1761635473352,-537.35,0.00023287,2]
[392541798,1761635473361,-622.73,0.00023287,2]
[392541799,1761635473370,-500.0,0.00023287,2]
[392541800,1761635473379,-1475.32,0.00023287,2]
[392541801,1761635473388,-943.69,0.00023287,2]
[392541802,1761635473398,-527.73,0.00023287,2]
[392541803,1761635473407,-500.0,0.00023287,2]
[392541804,1761635473416,-500.0,0.00023287,2]
[392541805,1761635473426,-546.22,0.00023287,2]
[392541806,1761635473436,-802.51,0.00023287,2]
[392541807,1761635473445,-1323.07,0.00023287,2]
[392541808,1761635473454,-500.0,0.00023287,2]
[392541809,1761635473464,-500.0,0.00023287,2]
[392541810,1761635473473,-1081.49,0.00023287,2]
[392541811,1761635473482,-808.32,0.00023287,2]
[392541812,1761635473491,-428.01605247,0.00023287,2]
[392541813,1761635473500,-500.0,0.00023287,2]
[392541814,1761635473509,-2191.24,0.00023287,2]
[392541815,1761635473519,-500.0,0.00023287,2]
[392541816,1761635473529,-500.0,0.00023287,2]
[392541817,1761635473545,-918.7,0.00023287,2]
[392541818,1761635473554,-649.38,0.00023287,2]
[392541819,1761635473563,-500.0,0.00023287,2]
[392541820,1761635473573,-870.92,0.00023287,2]
[392541821,1761635473583,-500.0,0.00023287,2]
[392541822,1761635473594,-730.78,0.00023287,2]
[392541823,1761635473605,-2634.03,0.00023287,2]
[392541824,1761635473614,-500.0,0.00023287,2]
[392541825,1761635473623,-500.0,0.00023287,2]
[392541826,1761635473633,-1269.87,0.00023287,2]
[392541827,1761635473643,-1967.43,0.00023287,2]
[392541828,1761635473652,-500.0,0.00023287,2]
[392541829,1761635473663,-650.12,0.00023287,2]
[392541830,1761635473672,-619.26261393,0.00023287,2]
[392541831,1761635473682,-512.74,0.00023287,2]
[392541832,1761635473691,-965.61,0.00023287,2]
[392541833,1761635473700,-500.0,0.00023287,2]
[392541834,1761635473710,-594.65,0.00023287,2]
[392541835,1761635473720,-744.7,0.00023287,2]
[392541836,1761635473731,-662.78,0.00023287,2]
[392541837,1761635473740,-1987.69,0.00023287,2]
[392541838,1761635473750,-1564.86,0.00023287,2]
[392541839,1761635473759,-500.0,0.00023287,2]
[392541840,1761635473768,-1117.6,0.00023287,2]
[392541841,1761635473778,-500.0,0.00023287,2]
[392541842,1761635473787,-500.0,0.00023287,2]
[392541843,1761635473797,-500.0,0.00023287,2]
[392541844,1761635473808,-500.0,0.00023287,2]
[392541845,1761635473817,-903.04,0.00023287,2]
[392541846,1761635473827,-2111.37,0.00023287,2]
[392541847,1761635473836,-500.0,0.00023287,2]
[392541848,1761635473845,-543.29,0.00023287,2]
[392541849,1761635473855,-626.07,0.00023287,2]
[392541850,1761635473865,-2223.28,0.00023287,2]
[392541851,1761635473874,-500.0,0.00023287,2]
[392541852,1761635473883,-500.0,0.00023287,2]
[392541853,1761635473893,-2843.76,0.00023287,2]
[392541854,1761635473902,-1289.34,0.00023287,2]
[392541855,1761635473911,-500.0,0.00023287,2]
[392541856,1761635473923,-500.0,0.00023287,2]
[392541857,1761635473932,-630.14,0.00023287,2]
[392541858,1761635473941,-500.0,0.00023287,2]
[392541859,1761635473951,-500.0,0.00023287,2]
[392541860,1761635473960,-500.0,0.00023287,2]
[392541861,1761635473971,-4652.07,0.00023287,2]
[392541862,1761635473980,-500.0,0.00023287,2]
[392541863,1761635473991,-347.48523135,0.00023287,2]
[392541864,1761635474002,-715.08,0.00023287,2]
[392541865,1761635474011,-769.7,0.00023287,2]
[392541866,1761635474020,-500.0,0.00023287,2]
[392541867,1761635474028,-505.99,0.00023287,2]
[392541868,1761635474038,-500.0,0.00023287,2]
[392541869,1761635474047,-3216.82,0.00023287,2]
[392541870,1761635474059,-500.0,0.00023287,2]
[392541871,1761635474070,-853.88,0.00023287,2]
[392541872,1761635474082,-500.0,0.00023287,2]
[392541873,1761635474092,-886.63,0.00023287,2]
[392541874,1761635474102,-500.0,0.00023287,2]
[392541875,1761635474112,-500.0,0.00023287,2]
[392541876,1761635474122,-29228.49,0.00023287,2]
[392541877,1761635474131,-2085.69,0.00023287,2]
[392541878,1761635474140,-500.0,0.00023287,2]
[392541879,1761635474149,-551.06,0.00023287,2]
[392541880,1761635474159,-500.0,0.00023287,2]